fUST/lending_fUST_20250222
["ID","MTS","AMOUNT","RATE_DAILY","PERIOD"]
[353976302,1740172238527,-500.0,0.00013698,2]
[353976304,1740172238536,-500.0,0.00013698,2]
[353976306,1740172238545,-500.0,0.00013698,2]
[353976308,1740172238554,-500.0,0.00013698,2]
[353976310,1740172238564,-500.0,0.00013698,2]
[353976312,1740172238573,-500.0,0.00013698,2]
[353976314,1740172238583,-500.0,0.00013698,2]
[353976316,1740172238593,-500.0,0.00013698,2]
[353976318,1740172238602,-500.0,0.00013698,2]
[353976320,1740172238611,-500.0,0.00013698,2]
[353976322,1740172238621,-506.2050862,0.00013698,2]
[353976324,1740172238631,-500.0,0.00013698,2]
[353976326,1740172238640,-500.8754972,0.00013698,2]
[353976328,1740172238649,-500.0,0.00013698,2]
[353976331,1740172238659,-500.0,0.00013698,2]
[353976333,1740172238670,-500.0,0.00013698,2]
[353976335,1740172238679,-500.0,0.00013698,2]
[353976337,1740172238689,-500.0,0.00013698,2]
[353976339,1740172238698,-500.0,0.00013698,2]
[353976341,1740172238708,-500.0,0.00013698,2]
[353976343,1740172238717,-500.0,0.00013698,2]
[353976345,1740172238727,-500.0,0.00013698,2]
[353976347,1740172238736,-500.0,0.00013698,2]
[353976349,1740172238745,-500.0,0.00013698,2]
[353976351,1740172238755,-500.0,0.00013698,2]
[353976353,1740172238764,-500.0,0.00013698,2]
[353976355,1740172238774,-500.0,0.00013698,2]
[353976357,1740172238784,-500.0,0.00013698,2]
[353976359,1740172238793,-500.0,0.00013698,2]
[353976361,1740172238803,-500.0,0.00013698,2]
[353976363,1740172238812,-499.92136827,0.00013698,2]
[353976365,1740172238821,-500.0,0.00013698,2]
[353976367,1740172238831,-500.0,0.00013698,2]
[353976369,1740172238841,-500.0,0.00013698,2]
[353976371,1740172238852,-500.0,0.00013698,2]
[353976373,1740172238861,-500.0,0.00013698,2]
[353976375,1740172238871,-500.0,0.00013698,2]
[353976377,1740172238881,-478.95994053,0.00013698,2]
[353976379,1740172238890,-500.0,0.00013698,2]
[353976381,1740172238899,-500.0,0.00013698,2]
[353976383,1740172238908,-500.0,0.00013698,2]
[353976385,1740172238918,-500.0,0.00013698,2]
[353976387,1740172238927,-500.0,0.00013698,2]
[353976389,1740172238936,-501.19130057,0.00013698,2]
[353976391,1740172238945,-500.0,0.00013698,2]
[353976393,1740172238955,-500.0,0.00013698,2]
[353976395,1740172238966,-500.0,0.00013698,2]
[353976397,1740172238975,-501.71580436,0.00013698,2]
[353976399,1740172238984,-500.0,0.00013698,2]
[353976401,1740172238994,-499.02550486,0.00013698,2]
[353976403,1740172239003,-500.0,0.00013698,2]
[353976405,1740172239012,-500.0,0.00013698,2]
[353976407,1740172239021,-500.0,0.00013698,2]
[353976409,1740172239031,-500.0,0.00013698,2]
[353976411,1740172239041,-486.21709027,0.00013698,2]
[353976413,1740172239051,-500.0,0.00013698,2]
[353976416,1740172239060,-500.0,0.00013698,2]
[353976417,1740172239069,-501.01976374,0.00013698,2]
[353976419,1740172239079,-503.74444899,0.00013698,2]
[353976422,1740172239092,-500.0,0.00013698,2]
[353976424,1740172239101,-500.0,0.00013698,2]
[353976426,1740172239111,-500.0,0.00013698,2]
[353976428,1740172239120,-500.0,0.00013698,2]
[353976430,1740172239130,-500.0,0.00013698,2]
[353976432,1740172239139,-500.0,0.00013698,2]
[353976434,1740172239149,-529.60134002,0.00013698,2]
[353976436,1740172239158,-500.0,0.00013698,2]
[353976438,1740172239167,-500.0,0.00013698,2]
[353976440,1740172239176,-500.0,0.00013698,2]
[353976442,1740172239186,-500.0,0.00013698,2]
[353976444,1740172239195,-500.0,0.00013698,2]
[353976447,1740172239208,-866.46,0.00013698,2]
[353976449,1740172239221,-500.0,0.00013698,2]
[353976452,1740172239233,-500.0,0.00013698,2]
[353976454,1740172239245,-500.0,0.00013698,2]
[353976456,1740172239255,-500.0,0.00013698,2]
[353976458,1740172239268,-500.0,0.00013698,2]
[353976461,1740172239280,-500.0,0.00013698,2]
[353976463,1740172239290,-500.0,0.00013698,2]
[353976465,1740172239301,-500.0,0.00013698,2]
[353976467,1740172239310,-500.0,0.00013698,2]
[353976469,1740172239321,-500.0,0.00013698,2]
[353976472,1740172239334,-500.0,0.00013698,2]
[353976474,1740172239345,-500.0,0.00013698,2]
[353976475,1740172239356,-500.0,0.00013698,2]
[353976476,1740172239367,-500.0,0.00013698,2]
[353976477,1740172239378,-500.0,0.00013698,2]
[353976478,1740172239389,-500.0,0.00013698,2]
[353976479,1740172239401,-505.02840841,0.00013698,2]
[353976480,1740172239412,-508.38,0.00013698,2]
[353976481,1740172239423,-749.97,0.00013698,2]
[353976482,1740172239435,-500.0,0.00013698,2]
[353976483,1740172239447,-500.0,0.00013698,2]
[353976484,1740172239458,-203.917016,0.00013698,2]
[353976485,1740172239469,-500.0,0.00013698,2]
[353976486,1740172239483,-500.0,0.00013698,2]
[353976487,1740172239494,-500.0,0.00013698,2]
[353976488,1740172239505,-500.0,0.00013698,2]
[353976489,1740172239516,-500.0,0.00013698,2]
[353976490,1740172239526,-158.593824,0.00013699,2]
[353976491,1740172239537,-159.603009,0.00013699,2]
[353976492,1740172239547,-152.0,0.00013768,2]
[353976493,1740172239560,-500.0,0.00013779,2]
[353976494,1740172239571,-866.46,0.0001378,2]
[353976496,1740172239581,-500.0,0.0001378,2]
[353976498,1740172239592,-500.0,0.0001378,2]
[353976500,1740172239603,-500.0,0.0001378,2]
[353976502,1740172239615,-500.0,0.0001378,2]
[353976505,1740172239626,-500.0,0.0001378,2]
[353976507,1740172239637,-500.0,0.0001378,2]
[353976509,1740172239647,-508.38,0.0001378,2]
[353976511,1740172239659,-749.97,0.0001378,2]
[353976513,1740172239669,-500.0,0.0001378,2]
[353976515,1740172239678,-866.46,0.00013863,2]
[353976517,1740172239688,-500.0,0.00013863,2]
[353976519,1740172239697,-500.0,0.00013863,2]
[353976522,1740172239708,-500.0,0.00013863,2]
[353976524,1740172239719,-500.0,0.00013863,2]
[353976526,1740172239730,-500.0,0.00013863,2]
[353976528,1740172239739,-500.0,0.00013863,2]
[353976530,1740172239749,-508.38,0.00013863,2]
[353976532,1740172239759,-749.97,0.00013863,2]
[353976534,1740172239770,-866.46,0.00013945,2]
[353976537,1740172239781,-285.63917213,0.00013945,2]
[353976539,1740172239792,-500.0,0.00013945,2]
[353976541,1740172239803,-500.0,0.00013945,2]
[353976543,1740172239814,-500.0,0.00013945,2]
[353976545,1740172239825,-215.66,0.00013945,2]
[353976547,1740172239835,-500.0,0.00013945,2]
[353976550,1740172239846,-508.38,0.00013945,2]
[353976552,1740172239858,-749.97,0.00013945,2]
[353976554,1740172239869,-866.46,0.00014027,2]
[353976556,1740172239881,-500.0,0.00014027,2]
[353976558,1740172239892,-500.0,0.00014027,2]
[353976561,1740172239903,-500.0,0.00014027,2]
[353976563,1740172239914,-314.33,0.00014027,2]
[353976565,1740172239926,-508.38,0.00014027,2]
[353976567,1740172239937,-749.97,0.00014027,2]
[353976569,1740172239947,-866.46,0.00014109,2]
[353976572,1740172239957,-500.0,0.00014109,2]
[353976575,1740172239967,-500.0,0.00014109,2]
[353976578,1740172239978,-500.0,0.00014109,2]
[353976580,1740172239988,-508.38,0.00014109,2]
[353976582,1740172239997,-749.97,0.00014109,2]
[353976585,1740172240007,-182.32,0.00014136,2]
[353976588,1740172240018,-7438.69753278,0.00014137,2]
[353976592,1740172240028,-500.0,0.00014164,2]
[353976595,1740172240039,-866.46,0.00014191,2]
[353976598,1740172240050,-500.0,0.00014191,2]
[353976602,1740172240062,-500.0,0.00014191,2]
[353976605,1740172240072,-500.0,0.00014191,2]
[353976608,1740172240083,-508.38,0.00014191,2]
[353976612,1740172240095,-749.97,0.00014191,2]
[353976615,1740172240105,-866.46,0.00014273,2]
[353976619,1740172240115,-500.0,0.00014273,2]
[353976622,1740172240125,-500.0,0.00014273,2]
[353976627,1740172240136,-500.0,0.00014273,2]
[353976632,1740172240146,-508.38,0.00014273,2]
[353976636,1740172240156,-749.97,0.00014273,2]
[353976640,1740172240166,-866.46,0.00014356,2]
[353976643,1740172240177,-500.0,0.00014356,2]
[353976647,1740172240188,-500.0,0.00014356,2]
[353976649,1740172240199,-500.0,0.00014356,2]
[353976651,1740172240210,-508.38,0.00014356,2]
[353976653,1740172240221,-749.97,0.00014356,2]
[353976655,1740172240231,-866.46,0.00014438,2]
[353976657,1740172240241,-500.0,0.00014438,2]
[353976660,1740172240251,-500.0,0.00014438,2]
[353976662,1740172240261,-185.78,0.00014438,2]
[353976664,1740172240271,-508.38,0.00014438,2]
[353976666,1740172240281,-749.97,0.00014438,2]
[353976668,1740172240291,-168.66440306,0.00014458,2]
[353976670,1740172240300,-866.46,0.0001452,2]
[353976672,1740172240311,-500.0,0.0001452,2]
[353976674,1740172240321,-500.0,0.0001452,2]
[353976676,1740172240331,-508.38,0.0001452,2]
[353976678,1740172240341,-749.97,0.0001452,2]
[353976681,1740172240351,-179.812,0.00014529,2]
[353976683,1740172240362,-866.46,0.00014602,2]
[353976685,1740172240372,-500.0,0.00014602,2]
[353976687,1740172240383,-160.74,0.00014602,2]
[353976689,1740172240397,-508.38,0.00014602,2]
[353976691,1740172240407,-749.97,0.00014602,2]
[353976693,1740172240418,-9881.11112467,0.00014635,2]
[353976695,1740172240428,-866.46,0.00014684,2]
[353976698,1740172240440,-500.0,0.00014684,2]
[353976700,1740172240451,-508.38,0.00014684,2]
[353976702,1740172240462,-749.97,0.00014684,2]
[353976704,1740172240473,-866.46,0.00014767,2]
[353976706,1740172240485,-500.0,0.00014767,2]
[353976709,1740172240496,-508.38,0.00014767,2]
[353976711,1740172240506,-749.97,0.00014767,2]
[353976713,1740172240516,-2148.4,0.000148,2]
[353976715,1740172240526,-866.46,0.00014849,2]
[353976717,1740172240537,-621.6,0.00014849,2]
[353976719,1740172240547,-508.38,0.00014849,2]
[353976721,1740172240557,-749.97,0.00014849,2]
[353976724,1740172240568,-2500.0,0.000149,2]
[353976726,1740172240578,-2314.83195019,0.000149,2]
[353976728,1740172240588,-26214.1803868,0.000149,2]
[353976751,1740172240774,-9516.9090253,0.000149,2]
[353976760,1740172240812,-4447.77153542,0.000149,2]
[353976763,1740172240823,-3080.6,0.000149,2]
[353977025,1740172243542,-951.94,0.000149,2]
[353977351,1740172246588,-479.25,0.000149,2]
[353983247,1740172787843,162.965097,9.041e-05,2]
[353983250,1740173198570,-155.0,0.00018,30]
[353983251,1740173198596,-30000.0,0.00018,60]
[353983252,1740173198620,-14197.0,0.00018,60]
[353983253,1740173198649,-1768.46,0.0001809,60]
[353983254,1740173198674,-500.0,0.00018356,30]
[353983255,1740173198700,-500.0,0.000185,60]
[353983256,1740173198727,-500.0,0.00018904,30]
[353983257,1740173198752,-500.0,0.0001895,60]
[353983258,1740173198778,-500.0,0.0001895,60]
[353983259,1740173198802,-500.0,0.0001895,60]
[353983260,1740173198826,-445.94572311,0.0001895,60]
[353983261,1740173198849,-5002.27951884,0.00019,30]
[353983262,1740173198874,-3000.0,0.00019178,30]
[353983263,1740173198899,-3000.0,0.00019178,30]
[353983264,1740173199050,-1033.3052,0.00019178,30]
[353983265,1740173199079,-500.0,0.00019452,30]
[353983266,1740173199106,-537.0119206,0.0002,30]
[353983267,1740173199132,-107087.15210631,0.0002,30]
[353983268,1740173199158,-300.0,0.0002,120]
[353983269,1740173199185,-500.0,0.0002,30]
[353983270,1740173199213,-448.86734324,0.00020513,120]
[353983271,1740173199238,-151.79269383,0.00020513,120]
[353983272,1740173199263,-500.0,0.00020547,30]
[353983273,1740173199290,-1085.37877447,0.00021,30]
[353983274,1740173199314,-2000.0,0.00021,120]
[353983275,1740173199339,-500.0,0.00021,120]
[353983276,1740173199364,-500.0,0.00021095,30]
[353983277,1740173199390,-2627.61176297,0.000212,30]
[353983278,1740173199414,-151.0,0.00021205,120]
[353983279,1740173199441,-500.0,0.00021643,30]
[353983280,1740173199467,-1100.0,0.00021917,30]
[353983281,1740173199491,-1100.0,0.00021917,30]
[353983282,1740173199515,-936.77824934,0.00021917,30]
[353983283,1740173199540,-197.0,0.00022,120]
[353983284,1740173199564,-2000.0,0.00022,120]
[353983285,1740173199589,-500.0,0.00022,120]
[353983286,1740173199617,-364.31528124,0.00022191,30]
[353983287,1740173199641,-151.0,0.00022274,120]
[353983288,1740173199666,-1307.0,0.00022466,120]
[353983289,1740173199690,-118537.11561099,0.0002258,60]
[353983290,1740173199718,-2669.90657592,0.00023,30]
[353983291,1740173199744,-2000.0,0.00023,120]
[353983292,1740173199769,-202.0,0.00023,120]
[353983293,1740173199796,-3549.90043574,0.00023,30]
[353983294,1740173199821,-1000.0,0.00023288,120]
[353983295,1740173199846,-151.0,0.00023342,120]
[353983296,1740173199871,-421.84171127,0.00024,120]
[353983297,1740173199895,-151.0,0.00024411,120]
[353983298,1740173199920,-1000.0,0.00024658,120]
[353983299,1740173199944,-500.0,0.000248,30]
[353983300,1740173199967,-13591.53,0.000248,30]
[353983301,1740173199990,-1000.0,0.00025,30]
[353983302,1740173200013,-1198.6030497,0.00025,30]
[353983303,1740173200037,-5470.0,0.00025,30]
[353983304,1740173200060,-223545.26439808,0.00025,30]
[353983305,1740173200083,-4805.97008066,0.00025,30]
[353983306,1740173200105,-40000.0,0.00025,30]
[353983307,1740173200129,-200.0,0.00025,120]
[353983308,1740173200153,-179.80945514,0.00025,30]
[353983309,1740173200176,-2339.09,0.00025,120]
[353983310,1740173200203,-7438.69753278,0.00025,30]
[353983311,1740173200227,-151.0,0.00025205,120]
[353983312,1740173200252,-151.0,0.00025479,120]
[353983313,1740173200277,-822.0,0.00026,60]
[353983314,1740173200301,-1007.14636487,0.00026,30]
[353983315,1740173200324,-7438.69753278,0.00026,120]
[353983316,1740173200348,-151.0,0.00026548,120]
[353983317,1740173200371,-384.84679858,0.0002661,30]
[353983318,1740173200395,-1000.0,0.00026999,30]
[353983319,1740173200418,-5000.0,0.00027,30]
[353983320,1740173200441,-1346.25,0.00027,30]
[353983321,1740173200464,-5000.0,0.00027,30]
[353983322,1740173200486,-5000.0,0.00027,30]
[353983323,1740173200509,-5000.0,0.00027,30]
[353983324,1740173200533,-5000.0,0.00027,30]
[353983325,1740173200557,-5000.0,0.00027,30]
[353983326,1740173200580,-5000.0,0.00027,30]
[353983327,1740173200604,-5000.0,0.00027,30]
[353983328,1740173200628,-5000.0,0.00027,30]
[353983329,1740173200651,-5000.0,0.00027,30]
[353983330,1740173200674,-5000.0,0.00027,30]
[353983331,1740173200699,-5000.0,0.00027,30]
[353983332,1740173200724,-5000.0,0.00027,30]
[353983333,1740173200748,-5000.0,0.00027,30]
[353983334,1740173200771,-5000.0,0.00027,30]
[353983335,1740173200799,-5000.0,0.00027,30]
[353983336,1740173200821,-5000.0,0.00027,30]
[353983337,1740173200845,-380.16379,0.00027,120]
[353983338,1740173200870,-2873.03208706,0.00027,120]
[353983339,1740173200893,-1107.72611,0.00027,120]
[353983340,1740173200917,-633.8757455,0.00027,120]
[353983341,1740173200941,-861.56475,0.00027,120]
[353983342,1740173200965,-861.56475,0.00027,120]
[353983343,1740173200988,-861.56475,0.00027,120]
[353983344,1740173201012,-861.56475,0.00027,120]
[353983345,1740173201036,-861.56475,0.00027,120]
[353983346,1740173201060,-861.56475,0.00027,120]
[353983347,1740173201085,-861.56475,0.00027,120]
[353983348,1740173201110,-861.56475,0.00027,120]
[353983349,1740173201134,-861.5648,0.00027,120]
[353983350,1740173201249,-1107.72611,0.000273,120]
[353983351,1740173201275,-210.4220679,0.00027397,120]
[353983352,1740173201300,-6194.71837058,0.000275,30]
[353983353,1740173201325,-151.0,0.00027616,120]
[353983354,1740173201350,-164.307,0.0002779,120]
[353983355,1740173201374,-227.08631595,0.00028,120]
[353983356,1740173201398,-160.0,0.00028,120]
[353983357,1740173201423,-31020.11,0.00028,30]
[353983358,1740173201446,-3200.24610167,0.000286,120]
[353983359,1740173201471,-151.0,0.00028685,120]
[353983360,1740173201496,-3678.99,0.000288,30]
[353983361,1740173201521,-9193.64,0.0002888,120]
[353983362,1740173201546,-7438.69753278,0.00029,120]
[353983363,1740173201570,-150.5,0.0002927,120]
[353983364,1740173201595,-150.5,0.0002927,120]
[353983365,1740173201620,-557.0,0.0002927,120]
[353983366,1740173201644,-557.0,0.0002927,120]
[353983367,1740173201668,-150.5,0.0002928,120]
[353983368,1740173201694,-150.5,0.0002928,120]
[353983369,1740173201722,-557.0,0.0002928,120]
[353983370,1740173201747,-557.0,0.0002928,120]
[353983371,1740173201771,-557.0,0.0002928,120]
[353983372,1740173201796,-150.5,0.0002929,120]
[353983373,1740173201821,-150.5,0.0002929,120]
[353983374,1740173201846,-557.0,0.0002929,120]
[353983375,1740173201871,-150.5,0.0002929,120]
[353983376,1740173201896,-150.5,0.0002929,120]
[353983377,1740173201921,-557.0,0.0002929,120]
[353983378,1740173201946,-557.0,0.0002929,120]
[353983379,1740173201970,-557.0,0.0002929,120]
[353983380,1740173201995,-426308.472557,0.00029625,120]
[353983381,1740173202021,-151.0,0.00029753,120]
[353983382,1740173202047,-1298.0,0.00029898,35]
[353983383,1740173202075,-228.4,0.0002998,120]
[353983384,1740173202100,-273.8,0.0002998,120]
[353983385,1740173202124,-559.27,0.0002998,120]
[353983386,1740173202149,-402.8618197,0.0002999,120]
[353983387,1740173202173,-500.0,0.0003,30]
[353983388,1740173202204,-160.0,0.0003,120]
[353983389,1740173202229,-56045.66800209,0.0003,120]
[353983390,1740173202254,-50000.0,0.0003,120]
[353983391,1740173202279,-5010.0,0.0003,120]
[353983392,1740173202304,-4734.19553734,0.0003,120]
[353983393,1740173202328,-200.0,0.0003,30]
[353983394,1740173202353,-7438.69753278,0.0003,120]
[353983396,1740173303920,200.0,0.00018,120]
[353983397,1740173315658,1079.29552904,0.00017739,90]
[353983398,1740173346463,151.0,0.00018,120]
[353983473,1740173432942,-355.3690173,0.00013378,2]
[353983475,1740173432952,-300.0,0.0001338,2]
[353983477,1740173432962,-24900.0,0.00013382,2]
[353983479,1740173432971,-168.46585424,0.000134,2]
[353983481,1740173432982,-200.09218247,0.00013473,2]
[353983483,1740173432991,-162.08228491,0.00013473,2]
[353983485,1740173433000,-500.0,0.00013473,2]
[353983487,1740173433010,-500.81112608,0.00013473,2]
[353983489,1740173433020,-500.0,0.00013473,2]
[353983491,1740173433029,-3889.35231386,0.000135,2]
[353984022,1740173438589,-423.79166931,0.000135,2]
[353984024,1740173438601,-1966.44274603,0.000135,2]
[353984030,1740173438651,-566.3043233,0.000135,2]
[353984032,1740173438663,-13103.52425326,0.000135,2]
[353984034,1740173438674,-95067.10605602,0.000135,2]
[353984037,1740173438686,-5254.53551996,0.000135,2]
[353984039,1740173438698,-47345.92612888,0.000135,2]
[353984041,1740173438708,-390.99458106,0.000135,2]
[353984043,1740173438719,-589.93048395,0.000135,2]
[353984045,1740173438733,-2665.50647269,0.000135,2]
[353984047,1740173438743,-500.0,0.00013698,2]
[353984049,1740173438751,-500.0,0.00013698,2]
[353984051,1740173438761,-500.0,0.00013698,2]
[353984053,1740173438771,-500.0,0.00013698,2]
[353984055,1740173438783,-500.0,0.00013698,2]
[353984057,1740173438791,-450.17613065,0.00013698,2]
[353984065,1740173438866,-49.82386935,0.00013698,2]
[353984067,1740173438877,-500.0,0.00013698,2]
[353984069,1740173438886,-170.70787749,0.00013698,2]
[353984071,1740173438895,-500.0,0.00013698,2]
[353984073,1740173438905,-4359.86,0.00013698,2]
[353984076,1740173438917,-500.0,0.00013698,2]
[353984077,1740173438926,-202.03,0.00013698,2]
[353984079,1740173438936,-500.0,0.00013698,2]
[353984082,1740173438946,-511.71,0.00013698,2]
[353984083,1740173438955,-500.0,0.00013698,2]
[353984086,1740173438965,-2654.44,0.00013698,2]
[353984087,1740173438975,-500.0,0.00013698,2]
[353984090,1740173438987,-500.0,0.00013698,2]
[353984092,1740173438997,-500.0,0.00013698,2]
[353984093,1740173439007,-500.0,0.00013698,2]
[353984096,1740173439017,-500.0,0.00013698,2]
[353984098,1740173439026,-1293.04,0.00013698,2]
[353984099,1740173439035,-759.21,0.00013698,2]
[353984101,1740173439044,-500.0,0.00013698,2]
[353984103,1740173439054,-460.61929051,0.00013698,2]
[353984106,1740173439066,-39.38070949,0.00013698,2]
[353984108,1740173439075,-500.0,0.00013698,2]
[353984110,1740173439085,-500.0,0.00013698,2]
[353984112,1740173439093,-500.0,0.00013698,2]
[353984114,1740173439104,-500.0,0.00013698,2]
[353984116,1740173439114,-549.83,0.00013698,2]
[353984118,1740173439124,-500.0,0.00013698,2]
[353984120,1740173439133,-500.0,0.00013698,2]
[353984122,1740173439143,-500.0,0.00013698,2]
[353984124,1740173439153,-500.0,0.00013698,2]
[353984126,1740173439162,-1612.63,0.00013698,2]
[353984128,1740173439171,-500.0,0.00013698,2]
[353984130,1740173439181,-816.08,0.00013698,2]
[353984132,1740173439190,-500.0,0.00013698,2]
[353984134,1740173439199,-500.0,0.00013698,2]
[353984136,1740173439209,-500.0,0.00013698,2]
[353984138,1740173439218,-500.0,0.00013698,2]
[353984140,1740173439227,-344.3447032,0.00013698,2]
[353984142,1740173439242,-155.6552968,0.00013698,2]
[353984144,1740173439251,-308.4089641,0.00013698,2]
[353984146,1740173439263,-191.5910359,0.00013698,2]
[353984148,1740173439273,-308.4089641,0.00013698,2]
[353984427,1740173441905,-722.7510359,0.00013698,2]
[353984429,1740173441914,-500.0,0.00013698,2]
[353984431,1740173441924,-500.0,0.00013698,2]
[353984433,1740173441933,-500.0,0.00013698,2]
[353984435,1740173441943,-500.0,0.00013698,2]
[353984437,1740173441953,-500.0,0.00013698,2]
[353984439,1740173441963,-500.0,0.00013698,2]
[353984441,1740173441972,-280.35754995,0.00013698,2]
[353984443,1740173441984,-219.64245005,0.00013698,2]
[353984445,1740173441993,-500.0,0.00013698,2]
[353984447,1740173442003,-547.56,0.00013698,2]
[353984449,1740173442012,-500.0,0.00013698,2]
[353984451,1740173442021,-500.0,0.00013698,2]
[353984453,1740173442030,-500.0,0.00013698,2]
[353984455,1740173442040,-500.0,0.00013698,2]
[353984457,1740173442049,-500.0,0.00013698,2]
[353984459,1740173442059,-1017.56,0.00013698,2]
[353984461,1740173442068,-1017.56,0.00013698,2]
[353984463,1740173442077,-500.0,0.00013698,2]
[353984465,1740173442091,-500.0,0.00013698,2]
[353984468,1740173442100,-500.0,0.00013698,2]
[353984471,1740173442109,-500.0,0.00013698,2]
[353984474,1740173442119,-158.593824,0.00013699,2]
[353984477,1740173442128,-225.8988765,0.00013763,2]
[353984479,1740173442138,-1017.56,0.00013779,2]
[353984481,1740173442147,-1017.56,0.00013779,2]
[353984484,1740173442156,-500.0,0.0001378,2]
[353984486,1740173442165,-500.0,0.0001378,2]
[353984488,1740173442176,-500.0,0.0001378,2]
[353984490,1740173442185,-500.0,0.0001378,2]
[353984491,1740173442194,-500.0,0.0001378,2]
[353984494,1740173442204,-515.99,0.0001378,2]
[353984496,1740173442213,-4359.86,0.0001378,2]
[353984498,1740173442223,-500.0,0.0001378,2]
[353984500,1740173442232,-500.0,0.0001378,2]
[353984514,1740173442351,-511.71,0.0001378,2]
[353984516,1740173442362,-500.0,0.0001378,2]
[353984518,1740173442372,-64.24091645,0.0001378,2]
[353984520,1740173442387,-1352.64554896,0.0001378,2]
[353984523,1740173442401,-1237.55353459,0.0001378,2]
[353984525,1740173442411,-500.0,0.0001378,2]
[353984527,1740173442419,-500.0,0.0001378,2]
[353984529,1740173442429,-500.0,0.0001378,2]
[353984531,1740173442438,-500.0,0.0001378,2]
[353984533,1740173442446,-500.0,0.0001378,2]
[353984535,1740173442456,-1293.04,0.0001378,2]
[353984537,1740173442465,-759.21,0.0001378,2]
[353984539,1740173442474,-565.16,0.0001378,2]
[353984541,1740173442485,-500.0,0.0001378,2]
[353984543,1740173442495,-213.10427045,0.0001378,2]
[353984545,1740173442505,-500.0,0.0001378,2]
[353984547,1740173442515,-500.0,0.0001378,2]
[353984549,1740173442524,-549.83,0.0001378,2]
[353984551,1740173442533,-625.0,0.0001378,2]
[353984553,1740173442542,-500.0,0.0001378,2]
[353984555,1740173442551,-500.0,0.0001378,2]
[353984557,1740173442560,-1612.63,0.0001378,2]
[353984559,1740173442569,-500.0,0.0001378,2]
[353984561,1740173442578,-816.08,0.0001378,2]
[353984563,1740173442587,-500.0,0.0001378,2]
[353984565,1740173442596,-500.0,0.0001378,2]
[353984567,1740173442605,-500.0,0.0001378,2]
[353984569,1740173442614,-500.0,0.0001378,2]
[353984571,1740173442624,-500.0,0.0001378,2]
[353984573,1740173442633,-500.0,0.0001378,2]
[353984575,1740173442642,-1031.16,0.0001378,2]
[353984577,1740173442651,-500.0,0.0001378,2]
[353984579,1740173442660,-500.0,0.0001378,2]
[353984581,1740173442669,-637.08,0.0001378,2]
[353984583,1740173442678,-500.0,0.0001378,2]
[353984585,1740173442687,-500.0,0.0001378,2]
[353984587,1740173442696,-500.0,0.0001378,2]
[353984589,1740173442705,-500.0,0.0001378,2]
[353984591,1740173442714,-547.56,0.0001378,2]
[353984593,1740173442723,-462.83709241,0.0001378,2]
[353984595,1740173442732,-500.0,0.0001378,2]
[353984597,1740173442743,-500.0,0.0001378,2]
[353984599,1740173442752,-500.0,0.0001378,2]